bitfinex-derivatives/quotes_SOLF0:USTF0_20260117
["timestamp","ask_amount","ask_price","bid_price","bid_amount"]
[1768646680756,5.43031817,144.06,144.0,4.07038305]
[1768646680952,6.25,144.07,144.0,4.07038305]
[1768646681152,5.43031817,144.06,144.0,4.07038305]
[1768646681353,6.25,144.07,144.0,4.07038305]
[1768646681555,5.42946657,144.06,144.0,4.07038305]
[1768646681856,6.25,144.07,144.0,4.07038305]
[1768646682058,5.42946657,144.06,144.0,4.07038305]
[1768646682258,6.25,144.07,144.0,4.07038305]
[1768646682458,5.42878286,144.06,144.0,4.07038305]
[1768646682758,6.25,144.07,144.0,4.07038305]
[1768646682959,5.42878286,144.06,144.0,4.07038305]
[1768646683159,6.25,144.07,144.0,4.07038305]
[1768646683356,5.42888739,144.06,144.0,4.07038305]
[1768646683558,6.25,144.07,144.0,4.07038305]
[1768646683849,5.42821394,144.06,144.0,4.07038305]
[1768646684056,6.25,144.07,144.0,4.07038305]
[1768646684255,5.42821394,144.06,144.0,4.07038305]
[1768646684557,6.25,144.07,144.0,4.07038305]
[1768646684854,5.42776549,144.06,144.0,4.07038305]
[1768646685153,6.25,144.07,144.0,4.07038305]
[1768646685354,5.42776549,144.06,144.0,4.07038305]
[1768646685554,6.25,144.07,144.0,4.07038305]
[1768646685753,5.42726068,144.06,144.0,4.07038305]
[1768646685950,6.25,144.07,144.0,4.07038305]
[1768646686156,5.42726068,144.06,144.0,4.07038305]
[1768646686357,6.25,144.07,144.0,4.07038305]
[1768646686548,5.42699024,144.06,144.0,4.07038305]
[1768646686755,6.25,144.07,144.0,4.07038305]
[1768646686954,5.42699024,144.06,144.0,4.07038305]
[1768646687156,6.25,144.07,144.0,4.07038305]
[1768646687357,5.42699024,144.06,144.0,4.07038305]
[1768646687552,6.25,144.07,144.0,4.07038305]
[1768646687757,5.42681512,144.06,144.0,4.07038305]
[1768646688056,6.25,144.07,144.0,4.07038305]
[1768646688263,5.42681512,144.06,144.0,4.07038305]
[1768646688559,6.25,144.07,144.0,4.07038305]
[1768646688763,5.42653979,144.06,144.0,4.07038305]
[1768646688957,6.25,144.07,144.0,4.07038305]
[1768646689164,5.42728119,144.06,144.0,4.07038305]
[1768646689466,6.25,144.07,144.0,4.07038305]
[1768646689767,5.42705032,144.06,144.0,4.07038305]
[1768646689970,6.25,144.07,144.0,4.07038305]
[1768646690159,5.42705032,144.06,144.0,4.07038305]
[1768646690465,6.25,144.07,144.0,4.07038305]
[1768646690666,5.42688972,144.06,144.0,4.07038305]
[1768646690966,20.83,144.09,144.0,4.07038305]
[1768646691154,5.42712402,144.08,144.0,4.07038305]
[1768646691358,5.42712402,144.07,144.0,4.07038305]
[1768646691558,20.83,144.1,144.0,4.07038305]
[1768646691758,5.42759245,144.09,144.0,4.07038305]
[1768646691964,5.42759245,144.08,144.0,4.07038305]
[1768646692161,5.42759245,144.07,144.0,4.07038305]
[1768646692464,20.83,144.1,144.0,4.07038305]
[1768646692656,5.42786391,144.09,144.0,4.07038305]
[1768646692856,11.67726391,144.08,144.0,4.07038305]
[1768646693061,5.42786391,144.07,144.0,4.07038305]
[1768646693260,6.2494,144.08,144.0,4.07038305]
[1768646693562,5.42817604,144.07,144.0,4.07038305]
[1768646693760,6.2488,144.1,144.0,4.07038305]
[1768646693956,5.42841516,144.09,144.0,4.07038305]
[1768646694156,5.42841516,144.08,144.0,4.07038305]
[1768646694362,6.2488,144.1,144.0,4.07038305]
[1768646694561,5.42919253,144.09,144.0,4.07038305]
[1768646694758,5.42919253,144.08,144.02,10.17616408]
[1768646694963,6.2488,144.1,144.02,10.17616408]
[1768646695164,5.4311739,144.09,144.02,10.17616408]
[1768646695364,5.4311739,144.08,144.02,10.17616408]
[1768646695565,6.2488,144.1,144.02,10.17616408]
[1768646695766,5.43187779,144.09,144.02,10.17616408]
[1768646695972,5.43187779,144.08,144.02,10.17616408]
[1768646696174,6.2488,144.1,144.02,10.17616408]
[1768646696372,5.431911,144.09,144.02,10.17616408]
[1768646696572,5.431911,144.08,144.02,10.17616408]
[1768646696770,6.2488,144.1,144.02,10.17616408]
[1768646696968,5.43237426,144.09,144.02,10.17616408]
[1768646697169,5.43237426,144.08,144.02,10.17616408]
[1768646697373,6.2488,144.1,144.02,10.17616408]
[1768646697574,5.43286884,144.09,144.02,10.17616408]
[1768646697773,5.43286884,144.08,144.02,10.17616408]
[1768646697976,6.2488,144.1,144.02,10.17616408]
[1768646698271,26.26286884,144.09,143.95,3.92426408]
[1768646698466,97.2023,144.1,143.95,3.92426408]
[1768646698467,26.26286884,144.08,143.95,3.92426408]
[1768646698671,5.43286884,144.07,143.95,3.92426408]
[1768646698870,5.43286884,144.06,143.95,3.92426408]
[1768646699071,5.43286884,144.05,143.95,3.92426408]
[1768646699273,6.2498,144.07,143.95,3.92426408]
[1768646699473,5.43246548,144.06,143.95,3.92426408]
[1768646699776,5.43246548,144.05,143.95,3.92426408]
[1768646699977,6.2498,144.07,143.95,3.92426408]
[1768646700177,5.43246304,144.06,143.95,3.92426408]
[1768646700376,5.43246304,144.05,143.95,3.92426408]
[1768646700674,6.2495,144.08,143.95,3.92426408]
[1768646700876,5.43313416,144.07,143.95,3.92426408]
[1768646701076,5.43324162,144.06,143.95,3.92426408]
[1768646701273,6.2499,144.07,143.95,3.92426408]
[1768646701473,5.43346648,144.06,143.95,3.92426408]
[1768646701669,5.43346648,144.05,143.95,3.92426408]
[1768646701864,118.0333,144.1,143.95,3.92426408]
[1768646702067,20.83,144.08,143.95,3.92426408]
[1768646702270,5.43322601,144.07,143.95,3.92426408]
[1768646702782,6.2503,144.06,143.95,3.92426408]
[1768646702982,5.43322601,144.05,143.95,3.92426408]
[1768646703682,6.2496,144.08,143.95,3.92426408]
[1768646703881,5.43448131,144.07,143.95,3.92426408]
[1768646704082,5.43448131,144.06,143.95,3.92426408]
[1768646704283,5.43448131,144.05,143.95,3.92426408]
[1768646704477,6.2496,144.08,143.95,3.92426408]
[1768646704676,5.43450898,144.07,143.95,3.92426408]
[1768646704876,5.43450898,144.06,143.95,3.92426408]
[1768646705078,5.43450898,144.05,143.95,3.92426408]
[1768646705284,6.2501,144.07,143.95,3.92426408]
[1768646705471,5.43275727,144.06,143.95,3.92426408]
[1768646705774,5.43275727,144.05,143.95,3.92426408]
[1768646705974,6.2501,144.07,143.95,3.92426408]
[1768646706170,5.43266395,144.06,143.95,3.92426408]
[1768646706375,5.43266395,144.05,143.95,3.92426408]
[1768646706570,6.2501,144.07,143.95,3.92426408]
[1768646706774,5.43277169,144.06,143.95,3.92426408]
[1768646706974,6.2501,144.07,143.95,3.92426408]
[1768646706975,5.43277169,144.05,143.95,3.92426408]
[1768646707270,6.2501,144.07,143.95,3.92426408]
[1768646707476,5.43280247,144.06,143.95,3.92426408]
[1768646707682,5.43280247,144.05,143.95,3.92426408]
[1768646707982,6.2501,144.07,143.95,3.92426408]
[1768646708182,5.43278122,144.06,143.95,3.92426408]
[1768646708482,5.43278122,144.05,143.95,3.92426408]
[1768646708680,6.2501,144.07,143.95,3.92426408]
[1768646708882,11.6828259,144.06,143.95,3.92426408]
[1768646709081,5.4326259,144.05,143.95,3.92426408]
[1768646709283,6.2502,144.06,143.95,3.92426408]
[1768646709481,5.43273622,144.05,143.95,3.92426408]
[1768646709682,6.2502,144.06,143.95,3.92426408]
[1768646709980,5.43273622,144.05,143.95,3.92426408]
[1768646710172,6.2502,144.06,143.95,3.92426408]
[1768646710373,5.43273622,144.05,143.95,3.92426408]
[1768646710571,6.2502,144.06,143.95,3.92426408]
[1768646710780,5.43238175,144.05,143.95,3.92426408]
[1768646710981,6.2502,144.06,143.95,3.92426408]
[1768646711275,5.43200974,144.05,143.95,3.92426408]
[1768646711480,6.2502,144.06,143.95,3.92426408]
[1768646711678,5.43115897,144.05,143.95,3.92426408]
[1768646711879,6.2502,144.06,143.95,3.92426408]
[1768646712081,5.43115897,144.05,143.95,3.92426408]
[1768646712380,6.2502,144.06,143.95,3.92426408]
[1768646712580,5.43141245,144.05,143.95,3.92426408]
[1768646712784,6.2502,144.06,143.95,3.92426408]
[1768646713084,5.43141245,144.05,143.95,3.92426408]
[1768646713383,27.0797,144.08,143.95,3.92426408]
[1768646713586,5.4318286,144.07,143.95,3.92426408]
[1768646713785,5.4318286,144.06,143.95,3.92426408]
[1768646713984,5.4318286,144.05,143.95,3.92426408]
[1768646714186,20.83,144.08,143.95,3.92426408]
[1768646714386,5.43139351,144.07,143.94,3.92426408]
[1768646714586,26.26139351,144.06,143.94,3.92426408]
[1768646714785,97.222,144.07,143.94,3.92426408]
[1768646714786,26.26139351,144.05,143.94,3.92426408]
[1768646714984,5.43139351,144.04,143.93,16.32594428]
[1768646715186,5.43139351,144.03,143.93,16.32594428]
[1768646715486,11.68349351,144.02,143.93,16.32594428]
[1768646715786,5.43139351,144.01,143.94,3.92426408]
[1768646715986,20.83,144.04,143.94,3.92426408]
[1768646716186,5.42739174,144.03,143.94,3.92426408]
[1768646716482,5.42739174,144.02,143.94,3.92426408]
[1768646716680,5.42739174,144.01,143.94,3.92426408]
[1768646716876,27.0813,144.04,143.94,3.92426408]
[1768646717184,32.50722141,144.03,143.94,3.92426408]
[1768646717389,5.42562141,144.02,143.94,3.92426408]
[1768646717587,5.42562141,144.01,143.94,3.92426408]
[1768646717787,27.0816,144.03,143.94,3.92426408]
[1768646717983,5.42359791,144.02,143.94,3.92426408]
[1768646718186,5.42359791,144.01,143.94,3.92426408]
[1768646718387,27.0816,144.03,143.94,3.92426408]
[1768646718686,5.4222412,144.02,143.94,3.92426408]
[1768646718989,5.4222412,144.01,143.94,3.92426408]
[1768646719195,27.0816,144.03,143.94,3.92426408]
[1768646719484,5.4222412,144.02,143.94,3.92426408]
[1768646719687,5.4222412,144.01,143.94,3.92426408]
[1768646719889,20.83,144.04,143.94,3.92426408]
[1768646720089,5.42116697,144.03,143.94,3.92426408]
[1768646720283,6.2509,144.05,143.94,3.92426408]
[1768646720482,5.42189191,144.04,143.94,3.92426408]
[1768646720679,5.42189191,144.03,143.94,3.92426408]
[1768646720981,27.0809,144.05,143.94,3.92426408]
[1768646721187,5.42190433,144.04,143.94,3.92426408]
[1768646721384,5.42190433,144.03,143.94,3.92426408]
[1768646721688,20.83,144.06,143.94,3.92426408]
[1768646721883,5.42175638,144.05,143.96,10.01468422]
[1768646722090,5.42175638,144.04,143.96,10.01468422]
[1768646722278,5.42175638,144.03,143.96,10.01468422]
[1768646722588,27.0803,144.06,143.96,10.01468422]
[1768646722888,5.421228,144.05,143.96,10.01468422]
[1768646723084,27.0803,144.06,143.96,3.76028422]
[1768646723085,5.421228,144.04,143.96,3.76028422]
[1768646723390,6.2503,144.06,143.96,3.76028422]
[1768646723590,5.42158625,144.05,143.96,3.76028422]
[1768646723788,5.42158625,144.04,143.96,3.76028422]
[1768646723990,6.2503,144.06,143.96,3.76028422]
[1768646724185,5.42163079,144.05,143.96,3.76028422]
[1768646724490,6.2503,144.06,143.96,3.76028422]
[1768646724683,5.42172433,144.05,143.96,3.76028422]
[1768646724879,6.2503,144.06,143.96,3.76028422]
[1768646725083,5.44181303,144.05,143.96,3.76028422]
[1768646725383,6.2503,144.06,143.96,3.76028422]
[1768646725583,5.44175522,144.05,143.96,3.76028422]
[1768646725779,6.2503,144.06,143.96,3.76028422]
[1768646725991,5.44175522,144.05,143.96,3.76028422]
[1768646726289,27.0796,144.08,143.96,3.76028422]
[1768646726488,5.44172895,144.07,143.96,3.76028422]
[1768646726690,5.44172895,144.06,143.96,3.76028422]
[1768646726889,5.44172895,144.05,143.96,3.76028422]
[1768646727093,27.0796,144.08,143.96,3.76028422]
[1768646727389,5.44173383,144.07,143.96,3.76028422]
[1768646727588,5.44173383,144.06,143.96,3.76028422]
[1768646727790,5.44173383,144.05,143.96,3.76028422]
[1768646728089,27.0796,144.08,143.96,3.76028422]
[1768646728281,5.44169965,144.07,143.96,3.76028422]
[1768646728487,5.44169965,144.06,143.96,3.76028422]
[1768646728682,5.44169965,144.05,143.96,3.76028422]
[1768646728883,27.0796,144.08,143.96,3.76028422]
[1768646729195,5.44167241,144.07,143.96,3.76028422]
[1768646729389,5.44167241,144.06,143.96,3.76028422]
[1768646729589,5.44167241,144.05,143.96,3.76028422]
[1768646729789,27.0796,144.08,143.96,3.76028422]
[1768646729988,5.44165227,144.07,143.96,3.76028422]
[1768646730292,5.44165227,144.06,143.96,3.76028422]
[1768646730492,5.44165227,144.05,143.96,3.76028422]
[1768646730693,27.0796,144.08,143.96,3.76028422]
[1768646730895,5.44163905,144.07,143.96,3.76028422]
[1768646731095,5.44163905,144.06,143.96,3.76028422]
[1768646731397,5.44163905,144.05,143.96,3.76028422]
[1768646731595,27.0796,144.08,143.96,3.76028422]
[1768646731798,5.44177474,144.07,143.96,3.76028422]
[1768646731997,5.44177474,144.06,143.96,3.76028422]
[1768646732294,27.0796,144.08,143.96,3.76028422]
[1768646732295,5.44177474,144.05,143.96,3.76028422]
[1768646732498,5.44177474,144.04,143.96,3.76028422]
[1768646732697,27.0796,144.08,143.96,3.76028422]
[1768646732892,5.44186492,144.07,143.96,3.76028422]
[1768646733198,5.44186492,144.06,143.96,3.76028422]
[1768646733398,5.44186492,144.05,143.96,3.76028422]
[1768646733598,27.0796,144.08,143.96,3.76028422]
[1768646733799,5.44189454,144.07,143.96,3.76028422]
[1768646734000,5.44189454,144.06,143.96,3.76028422]
[1768646734197,5.44189454,144.05,143.96,3.76028422]
[1768646734394,27.0796,144.08,143.96,3.76028422]
[1768646734593,5.44192841,144.07,143.96,3.76028422]
[1768646734795,5.44192841,144.06,143.96,3.76028422]
[1768646735098,5.44192841,144.05,143.96,3.76028422]
[1768646735301,27.0796,144.08,143.96,3.76028422]
[1768646735500,5.44212087,144.07,143.96,3.76028422]
[1768646735800,5.44212087,144.06,143.96,3.76028422]
[1768646735998,5.44212087,144.05,143.96,3.76028422]
[1768646736193,27.0796,144.08,143.96,3.76028422]
[1768646736398,5.44205773,144.07,143.96,3.76028422]
[1768646736601,5.44205773,144.06,143.96,3.76028422]
[1768646736795,5.44205773,144.05,143.96,3.76028422]
[1768646737002,27.0796,144.08,143.96,3.76028422]
[1768646737201,5.44260879,144.07,143.96,3.76028422]
[1768646737407,5.44260879,144.06,143.96,3.76028422]
[1768646737607,5.44260879,144.05,143.96,3.76028422]
[1768646737804,27.0796,144.08,143.96,3.76028422]
[1768646738102,5.44285815,144.07,143.96,3.76028422]
[1768646738303,5.44285815,144.06,143.96,3.76028422]
[1768646738607,5.44285815,144.05,143.96,3.76028422]
[1768646738808,27.0796,144.08,143.96,3.76028422]
[1768646739111,5.44319695,144.07,143.96,3.76028422]
[1768646739308,5.44319695,144.06,143.96,3.76028422]
[1768646739607,5.44319695,144.05,143.96,3.76028422]
[1768646739807,27.0796,144.08,143.96,3.76028422]
[1768646739998,5.44404096,144.07,143.96,3.76028422]
[1768646740202,5.44404096,144.06,143.96,3.76028422]
[1768646740401,5.44404096,144.05,143.96,3.76028422]
[1768646740706,27.0796,144.08,143.96,3.76028422]
[1768646740906,5.44496295,144.07,143.96,3.76028422]
[1768646741109,5.44496295,144.06,143.96,3.76028422]
[1768646741406,5.44496295,144.05,143.96,3.76028422]
[1768646741605,5.44496295,144.04,143.96,3.76028422]
[1768646741806,27.0796,144.08,143.96,3.76028422]
[1768646742005,5.44600738,144.07,143.96,3.76028422]
[1768646742198,5.44600738,144.06,143.96,3.76028422]
[1768646742403,5.44600738,144.05,143.96,3.76028422]
[1768646742601,5.44600738,144.04,143.96,3.76028422]
[1768646742809,27.0796,144.08,143.96,3.76028422]
[1768646743108,5.44702995,144.07,143.96,3.76028422]
[1768646743406,5.44702995,144.06,143.96,3.76028422]
[1768646743607,5.44702995,144.05,143.96,3.76028422]
[1768646743805,5.44702995,144.04,143.96,3.76028422]
[1768646744007,27.0796,144.08,143.96,3.76028422]
[1768646744209,5.44895885,144.07,143.96,3.76028422]
[1768646744413,5.44895885,144.06,143.96,3.76028422]
[1768646744713,5.44895885,144.05,143.96,3.76028422]
[1768646744903,5.44895885,144.04,143.96,3.76028422]
[1768646745108,27.0796,144.08,143.96,3.76028422]
[1768646745408,5.44910343,144.07,143.96,3.76028422]
[1768646745608,5.44910343,144.06,143.96,3.76028422]
[1768646745814,5.44910343,144.05,143.96,3.76028422]
[1768646746016,5.44910343,144.04,143.96,3.76028422]
[1768646746313,27.0796,144.08,143.96,3.76028422]
[1768646746515,5.44977036,144.07,143.96,3.76028422]
[1768646746714,5.44977036,144.06,143.96,3.76028422]
[1768646746915,5.44977036,144.05,143.96,3.76028422]
[1768646747114,5.44977036,144.04,143.96,3.76028422]
[1768646747413,20.83,144.07,143.96,3.76028422]
[1768646747610,5.4498215,144.06,143.96,3.76028422]
[1768646747810,5.4498215,144.05,143.96,3.76028422]
[1768646748006,5.4498215,144.04,143.96,3.76028422]
[1768646748210,5.4498215,144.03,143.96,3.76028422]
[1768646748411,27.0802,144.06,143.96,3.76028422]
[1768646748612,5.44987587,144.05,143.96,3.76028422]
[1768646748916,5.44987587,144.04,143.96,3.76028422]
[1768646749116,5.44987587,144.03,143.96,3.76028422]
[1768646749318,27.0802,144.06,143.96,3.76028422]
[1768646749515,5.44996475,144.05,143.96,3.76028422]
[1768646749710,5.44996475,144.04,143.96,3.76028422]
[1768646749919,5.44996475,144.03,143.96,3.76028422]
[1768646750220,27.0802,144.06,143.96,3.76028422]
[1768646750421,5.45012747,144.05,143.96,3.76028422]
[1768646750617,5.45012747,144.04,143.96,3.76028422]
[1768646750915,5.45012747,144.03,143.96,3.76028422]
[1768646751116,27.0802,144.06,143.96,3.76028422]
[1768646751315,5.45038982,144.05,143.96,3.76028422]
[1768646751516,5.45038982,144.04,143.96,3.76028422]
[1768646751715,5.45038982,144.03,143.96,3.76028422]
[1768646751917,27.0802,144.06,143.96,3.76028422]
[1768646752119,5.45067837,144.05,143.96,3.76028422]
[1768646752419,5.45067837,144.04,143.96,3.76028422]
[1768646752620,5.45067837,144.03,143.96,3.76028422]
[1768646752821,27.0802,144.06,143.96,3.76028422]
[1768646753121,5.45102316,144.05,143.96,3.76028422]
[1768646753321,5.45102316,144.04,143.96,3.76028422]
[1768646753622,5.45102316,144.03,143.96,3.76028422]
[1768646753822,27.0802,144.06,143.96,3.76028422]
[1768646754024,5.45134977,144.05,143.96,3.76028422]
[1768646754322,5.45134977,144.04,143.96,3.76028422]
[1768646754521,5.45134977,144.03,143.96,3.76028422]
[1768646754723,27.0802,144.06,143.96,3.76028422]
[1768646754919,5.45158765,144.05,143.96,3.76028422]
[1768646755218,5.45158765,144.04,143.96,3.76028422]
[1768646755419,5.45158765,144.03,143.96,3.76028422]
[1768646755620,27.0802,144.06,143.96,3.76028422]
[1768646755817,5.45203057,144.05,143.96,3.76028422]
[1768646756022,5.45203057,144.04,143.96,3.76028422]
[1768646756323,27.0802,144.06,143.96,3.76028422]
[1768646756324,5.45203057,144.03,143.96,3.76028422]
[1768646756519,27.0802,144.06,143.96,3.76028422]
[1768646756716,5.45231603,144.05,143.96,3.76028422]
[1768646756921,5.45231603,144.04,143.96,3.76028422]
[1768646757125,5.45231603,144.03,143.96,3.76028422]
[1768646757324,27.0802,144.06,143.96,3.76028422]
[1768646757621,5.45209591,144.05,143.96,3.76028422]
[1768646757922,5.45209591,144.04,143.96,3.76028422]
[1768646758123,5.45209591,144.03,143.96,3.76028422]
[1768646758425,27.0802,144.06,143.96,3.76028422]
[1768646758629,5.45259462,144.05,143.96,3.76028422]
[1768646758933,5.45259462,144.04,143.96,3.76028422]
[1768646759226,5.45259462,144.03,143.96,3.76028422]
[1768646759427,27.0802,144.06,143.96,3.76028422]
[1768646759728,5.45272556,144.05,143.96,3.76028422]
[1768646759934,5.45272556,144.04,143.96,3.76028422]
[1768646760118,5.45272556,144.03,143.96,3.76028422]
[1768646760320,5.45536909,144.02,143.96,3.76028422]
[1768646760524,27.0802,144.06,143.96,3.76028422]
[1768646760724,5.45538687,144.05,143.96,3.76028422]
[1768646760926,5.45538687,144.04,143.96,3.76028422]
[1768646761216,5.45538687,144.03,143.96,3.76028422]
[1768646761417,27.0795,144.08,143.96,3.76028422]
[1768646761623,5.45675018,144.07,143.96,3.76028422]
[1768646761817,5.45675018,144.06,143.96,3.76028422]
[1768646762128,27.0795,144.08,143.96,3.76028422]
[1768646762129,5.45675018,144.05,143.96,3.76028422]
[1768646762427,5.45675018,144.04,143.96,3.76028422]
[1768646762626,5.45675018,144.03,143.98,10.11314799]
[1768646762820,6.2498,144.07,143.98,10.11314799]
[1768646763024,5.45837855,144.06,143.98,10.11314799]
[1768646763319,5.45837855,144.05,143.98,10.11314799]
[1768646763524,5.45837855,144.04,143.98,10.11314799]
[1768646763715,5.45837855,144.03,143.98,10.11314799]
[1768646763919,5.45837855,144.02,143.98,10.11314799]
[1768646764123,6.2498,144.07,143.98,10.11314799]
[1768646764422,5.46036291,144.06,143.98,10.11314799]
[1768646764622,5.46036291,144.05,143.98,10.11314799]
[1768646764829,5.46036291,144.04,143.98,10.11314799]
[1768646765129,5.46036291,144.03,143.98,10.11314799]
[1768646765329,5.46036291,144.02,143.98,10.11314799]
[1768646765537,6.2498,144.07,143.98,10.11314799]
[1768646765829,5.46330119,144.06,143.98,10.11314799]
[1768646766024,5.46330119,144.05,143.98,10.11314799]
[1768646766225,5.46330119,144.04,143.98,10.11314799]
[1768646766525,5.46330119,144.03,143.98,10.11314799]
[1768646766725,5.46330119,144.02,143.98,10.11314799]
[1768646766929,6.2498,144.07,143.98,10.11314799]
[1768646767135,5.46377772,144.06,143.98,10.11314799]
[1768646767335,5.46377772,144.05,143.98,10.11314799]
[1768646767634,5.46377772,144.04,143.98,10.11314799]
[1768646767828,5.46377772,144.03,143.98,10.11314799]
[1768646768029,5.46377772,144.02,143.98,10.11314799]
[1768646768231,5.46377772,144.01,143.98,10.11314799]
[1768646768533,6.2503,144.06,143.98,10.11314799]
[1768646768830,5.464317,144.05,143.98,3.85954799]
[1768646769027,5.464317,144.04,143.98,3.85954799]
[1768646769232,5.464317,144.03,143.98,3.85954799]
[1768646769433,5.464317,144.02,143.98,3.85954799]
[1768646769634,5.464317,144.01,143.98,3.85954799]
[1768646769834,6.2503,144.06,143.98,3.85954799]
[1768646770030,5.46483429,144.05,143.98,3.85954799]
[1768646770231,5.46483429,144.04,143.98,3.85954799]
[1768646770431,5.46483429,144.03,143.96,3.85954799]
[1768646770634,5.46483429,144.02,143.96,3.85954799]
[1768646770848,5.46462538,144.01,143.96,3.85954799]
[1768646771036,6.2503,144.06,143.96,3.85954799]
[1768646771336,5.46428243,144.05,143.96,3.85954799]
[1768646771535,5.46428243,144.04,143.96,3.85954799]
[1768646771834,5.46428243,144.03,143.96,3.85954799]
[1768646772037,5.46428243,144.02,143.96,3.85954799]
[1768646772233,5.46428243,144.01,143.96,3.85954799]
[1768646772433,6.2503,144.06,143.96,3.85954799]
[1768646772636,5.46456203,144.05,143.96,3.85954799]
[1768646772936,5.46456203,144.04,143.96,3.85954799]
[1768646773135,5.46456203,144.03,143.96,3.85954799]
[1768646773336,6.2503,144.06,143.96,3.85954799]
[1768646773337,5.46456203,144.02,143.96,3.85954799]
[1768646773534,5.46456203,144.01,143.96,3.85954799]
[1768646773735,6.2503,144.06,143.96,3.85954799]
[1768646773936,5.46442362,144.05,143.96,3.85954799]
[1768646774136,5.46442362,144.04,143.96,3.85954799]
[1768646774337,5.46442362,144.03,143.96,3.85954799]
[1768646774533,5.46442362,144.02,143.96,3.85954799]
[1768646774740,5.46442362,144.01,143.96,3.85954799]
[1768646774936,6.2503,144.06,143.96,3.85954799]
[1768646775137,5.46428693,144.05,143.96,3.85954799]
[1768646775342,5.46428693,144.04,143.96,3.85954799]
[1768646775536,5.46428693,144.03,143.96,3.85954799]
[1768646775736,5.46428693,144.02,143.96,3.85954799]
[1768646776036,5.46428693,144.01,143.96,3.85954799]
[1768646776338,6.2503,144.06,143.96,3.85954799]
[1768646776538,5.4650865,144.05,143.96,3.85954799]
[1768646776739,5.4650865,144.04,143.96,3.85954799]
[1768646776939,5.4650865,144.03,143.96,3.85954799]
[1768646777141,5.4650865,144.02,143.96,3.85954799]
[1768646777332,5.4650865,144.01,143.96,3.85954799]
[1768646777532,6.2503,144.06,143.96,3.85954799]
[1768646777838,5.4649816,144.05,143.96,3.85954799]
[1768646778137,5.4649816,144.04,143.96,3.85954799]
[1768646778336,5.4649816,144.03,143.96,3.85954799]
[1768646778538,5.4649816,144.02,143.96,3.85954799]
[1768646778729,5.4649816,144.01,143.96,3.85954799]
[1768646778929,6.2503,144.06,143.96,3.85954799]
[1768646779135,5.46385702,144.05,143.96,3.85954799]
[1768646779332,5.46385702,144.04,143.96,3.85954799]
[1768646779535,5.46385702,144.03,143.96,3.85954799]
[1768646779734,5.46385702,144.02,143.96,3.85954799]
[1768646779937,5.46385702,144.01,143.96,3.85954799]
[1768646780140,6.2503,144.06,143.96,3.85954799]
[1768646780331,5.46348215,144.05,143.96,3.85954799]
[1768646780526,5.46348215,144.04,143.96,3.85954799]
[1768646780734,7.19287496,144.03,143.96,3.85954799]
[1768646781032,5.46348215,144.02,143.96,3.85954799]
[1768646787243,5.46348215,144.01,143.96,3.85954799]
[1768646787548,5.46348215,144.0,143.96,3.85954799]
[1768646787749,1.72939281,144.03,143.96,3.85954799]
[1768646787944,5.46326621,144.02,143.96,3.85954799]
[1768646788144,5.46326621,144.01,143.96,3.85954799]
[1768646788345,5.46326621,144.0,143.96,3.85954799]
[1768646788651,1.72939281,144.03,143.96,3.85954799]
[1768646788847,5.46181169,144.02,143.96,3.85954799]
[1768646789147,5.46181169,144.01,143.96,3.85954799]
[1768646789350,5.46181169,144.0,143.96,3.85954799]
[1768646789544,1.72939281,144.03,143.96,3.85954799]
[1768646789744,5.46163899,144.02,143.96,3.85954799]
[1768646789947,5.46163899,144.01,143.96,3.85954799]
[1768646790146,5.46163899,144.0,143.96,3.85954799]
[1768646790346,1.72939281,144.03,143.96,3.85954799]
[1768646790551,5.46163273,144.02,143.96,3.85954799]
[1768646790747,7.19102554,144.01,143.96,3.85954799]
[1768646790952,5.46163273,144.0,143.96,3.85954799]
[1768646791152,1.72939281,144.01,143.96,3.85954799]
[1768646791344,5.46113669,144.0,143.96,3.85954799]
[1768646791544,1.72939281,144.01,143.96,3.85954799]
[1768646791745,5.46070648,144.0,143.96,3.85954799]
[1768646791948,5.46070648,143.99,143.96,3.85954799]
[1768646792146,1.72939281,144.01,143.96,3.85954799]
[1768646792353,5.46090611,144.0,143.96,3.85954799]
[1768646792553,1.72939281,144.01,143.96,3.85954799]
[1768646792753,5.4610075,144.0,143.96,3.85954799]
[1768646792947,1.72939281,144.01,143.96,3.85954799]
[1768646793149,5.46100392,144.0,143.96,3.85954799]
[1768646793350,1.72939281,144.01,143.96,3.85954799]
[1768646793550,5.46048292,144.0,143.96,3.85954799]
[1768646793751,1.72939281,144.01,143.96,3.85954799]
[1768646794057,5.46048292,144.0,143.96,3.85954799]
[1768646794354,1.72939281,144.01,143.96,3.85954799]
[1768646794557,5.45993689,144.0,143.96,3.85954799]
[1768646794757,1.72939281,144.01,143.96,3.85954799]
[1768646795056,5.45993689,144.0,143.96,3.85954799]
[1768646795257,1.72939281,144.01,143.96,3.85954799]
[1768646795557,5.45945749,144.0,143.96,3.85954799]
[1768646795757,1.72939281,144.01,143.96,3.85954799]
[1768646795955,5.45945749,144.0,143.96,3.85954799]
[1768646796159,1.72939281,144.01,143.96,3.85954799]